{"text_format":"1","workbook":"xlsx","n_sheets":6,"sheets":["SOLICITAÇÃO","MEMORIAL DESCRITIVO","Cor - Versões - Código de Barra","PLANO DE ENSAIO","REPASSE ","Plan2"],"not_rendered":{"charts":0,"images":4,"macros":1,"external_links":1,"defined_names":66,"comments":0,"pivot_tables":0},"unopened":[],"bounds":{"document_bytes":16777216,"sheet_cells":100000,"rows_first":2000,"rows_last":500,"rows_between":2000,"halvings":0,"cell_chars":16384,"cell_head_chars":4096},"cells_cut":0,"cells_raw":0,"read":"whole","date_system":"1900"}

{"sheet":"SOLICITAÇÃO","index":0,"n_rows":51,"n_cols":4,"rows_kept":51,"cut":false,"hidden":false,"merged":[[46,3,46,4],[47,2,47,4],[48,2,48,4],[50,2,50,4],[49,3,49,4],[33,2,33,4],[34,2,34,4],[35,2,35,4],[36,2,36,4],[37,2,37,4],[43,1,43,4],[38,3,38,4],[39,3,39,4],[40,3,40,4],[41,2,41,4],[32,2,32,4],[19,2,19,4],[20,2,20,4],[21,2,21,4],[22,2,22,4],[24,1,24,4],[26,2,26,4],[27,2,27,4],[28,2,28,4],[29,2,29,4],[30,2,30,4],[31,2,31,4],[18,2,18,4],[1,1,1,4],[8,1,8,4],[10,2,10,4],[11,2,11,4],[12,2,12,4],[13,2,13,4],[14,2,14,4],[15,2,15,4],[16,2,16,4],[17,2,17,4],[5,1,5,4],[6,1,6,4]]}
[]
[null,"                                \n                                 ANÁLISE DE VIABILIDADE - ANDADOR\n                 \n                               "]
[]
[null,"SOLICITAÇÃO:","-"]
[null,"MODELO DE CERTIFICAÇÃO:","-"]
[null,{"$f":"IF(C5=\"MODELO 2\",\" - Somente podem solicitar a Certificação com base no Modelo de Certificação 2 os fabricantes de Andadores que comprovem sua classificação como MPE, MEI\",\"\")","v":""}]
[null,{"$f":"IF(C5=\"MODELO 2\",\" - A opção pelo Modelo de Certificação 2 não se aplica aos importadores, comerciantes ou distribuidores de Andadores, limitando-se aos fabricantes localizados em todo o território nacional.\",\"\")","v":""}]
[]
[null,"DADOS DA EMPRESA SOLICITANTE"]
[]
[null,"RAZÃO SOCIAL:","-"]
[null,"NOME FANTASIA:","-"]
[null,"CNPJ:","-"]
[null,"ENDEREÇO:","-"]
[null,"BAIRRO:","-"]
[null,"CEP:","-"]
[null,"CIDADE:","-"]
[null,"ESTADO:","-"]
[null,"E-MAIL:","-"]
[null,"NOME DO CONTATO:","-"]
[null,"TELEFONE: (   )","-"]
[null,"DATA DA SOLICITAÇÃO:","-"]
[null,null,"______________________________________________________________________\nAssinatura (obrigatório)"]
[]
[null,"DADOS DA FÁBRICA"]
[]
[null,"RAZÃO SOCIAL:","-"]
[null,"NOME FANTASIA:","-"]
[null,"CNPJ:","-"]
[null,"ENDEREÇO:","-"]
[null,"BAIRRO:","-"]
[null,"CEP:","-"]
[null,"CIDADE:","-"]
[null,"ESTADO:","-"]
[null,"PAÍS:","-"]
[null,"E-MAIL - FÁBRICA:","-"]
[null,"NOME DO CONTATO FÁBRICA:","-"]
[null,"TELEFONE (DDD) XXXXX-XXXX:","-"]
[null,"PROCEDÊNCIA: ","-"]
[null,"PAÍS DE ORIGEM:","-"]
[null,"POSSUI CERTIFICAÇÃO ISO 9001? (vigente)","-",{"$f":"IF(C41=\"SIM\",\"Enviar certificado com validade vigente via e-mail\",\"\")","v":""}]
[null,{"$f":"IF(C41=\"sim\",\"DESCREVA O ESCOPO DE CERTIFICAÇÃO\",\"\")","v":""},"-"]
[]
[null,"IDENTIFICAÇÃO DOS PRODUTOS"]
[]
[null,"PRODUTO COM MÚLTIPLAS CERTIFICAÇÕES (PRODUTO HÍBRIDO)?","-",{"$f":"IF(C46=\"SIM\",\"QUAL(IS)\",\"\")","v":""}]
[null,"POSSUI LICENÇA DE TERCEIROS?\n(USO DE MARCA): ","-",{"$f":"IF(C47=\"SIM\",\"Favor preencher as duas linhas abaixo\",\"\")","v":""}]
[null,{"$f":"IF(C47=\"SIM\",\"PRODUTOS LICENCIADOS:\",\"\")","v":""},"-"]
[null,{"$f":"IF(C47=\"SIM\",\"N° DA LICENÇA P/ USO DE MARCAS:\",\"\")","v":""},"-"]
[null,"EXISTE PROCESSO TERCEIRIZADO:","-"]
[null,{"$f":"IF(C50=\"SIM\",\"QUAL?\",\"\")","v":""}]

{"sheet":"MEMORIAL DESCRITIVO","index":1,"n_rows":88,"n_cols":15,"rows_kept":88,"cut":false,"hidden":false,"merged":[[60,5,60,9],[69,5,69,9],[70,5,70,9],[61,5,61,9],[67,5,67,9],[67,10,67,14],[68,5,68,9],[61,10,61,14],[72,1,72,14],[73,3,73,4],[73,10,73,14],[73,5,73,6],[73,1,73,2],[70,10,70,14],[62,1,62,4],[63,1,63,4],[64,1,64,4],[65,1,65,4],[73,7,73,8],[86,4,86,8],[86,10,86,14],[87,10,87,14],[87,4,87,8],[9,1,9,2],[9,4,9,5],[9,7,9,8],[9,10,9,11],[9,13,9,14],[68,10,68,14],[62,10,62,14],[63,10,63,14],[64,10,64,14],[65,10,65,14],[66,10,66,14],[59,10,59,14],[59,1,59,4],[60,1,60,4],[69,1,69,4],[61,1,61,4],[70,1,70,4],[67,1,67,4],[68,1,68,4],[36,11,40,14],[8,1,8,2],[8,4,8,5],[8,7,8,8],[8,10,8,11],[8,13,8,14],[42,1,42,14],[44,11,53,14],[44,6,53,9],[59,5,59,9],[11,1,11,14],[13,1,14,1],[13,4,14,4],[13,7,14,7],[13,10,14,10],[13,13,14,13],[19,1,20,1],[19,4,20,4],[26,1,26,14],[19,7,20,7],[44,10,53,10],[29,11,31,14],[32,11,32,14],[32,9,32,10],[78,16,82,17],[78,4,79,8],[81,4,82,8],[75,1,75,14],[78,9,82,9],[78,10,82,11],[77,4,77,8],[80,4,80,8],[77,10,77,11],[77,13,77,14],[77,1,82,1],[78,2,79,2],[81,2,82,2],[78,12,82,12],[78,13,82,14],[28,0,32,0],[28,1,28,2],[29,1,29,2],[30,1,30,2],[31,1,31,2],[32,1,32,2],[29,5,29,8],[30,5,30,8],[31,5,31,8],[32,5,32,8],[1,1,1,14],[3,1,3,2],[3,4,3,8],[4,1,4,2],[4,4,4,8],[5,1,5,2],[5,4,5,8],[6,1,6,2],[6,4,6,8],[84,4,84,8],[84,10,84,14],[85,4,85,8],[85,10,85,14],[19,10,20,10],[19,13,20,13],[16,1,17,1],[16,4,17,4],[16,7,17,7],[16,10,17,10],[16,13,17,13],[34,1,34,14],[66,1,66,4],[44,1,53,1],[44,2,53,5],[55,1,55,14],[60,10,60,14],[69,10,69,14],[57,1,57,14],[62,5,62,9],[63,5,63,9],[64,5,64,9],[65,5,65,9],[66,5,66,9]]}
[]
[null,"IDENTIFICAÇÃO DO MODELO OBJETO DA CERTIFICAÇÃO"]
[]
[null,"MODELO:",null,null,"-"]
[null,"MARCA(S):",null,null,"-"]
[null,"NOME COMERCIAL:",null,null,"-"]
[null,"CÓDIGO DO FABRICANTE:",null,null,"-"]
[]
[null,{"$f":"IF(SOLICITAÇÃO!C5=\"MODELO 1b - LOTE\",\"IDENTIFICAÇÃO LOTE\",\"\")","v":""},null,null,{"$f":"IF(SOLICITAÇÃO!C5=\"MODELO 1b - LOTE\",\"QUANTIDADE DO LOTE\",\"\")","v":""},null,null,{"$f":"IF(SOLICITAÇÃO!C5=\"MODELO 1b - LOTE\",\"N° DO LOTE DE FABRICAÇÃO\",\"\")","v":""},null,null,{"$f":"IF(SOLICITAÇÃO!C5=\"MODELO 1b - LOTE\",\"LI/LPCO/DI/DUIMP\",\"\")","v":""},null,null,{"$f":"IF(SOLICITAÇÃO!C5=\"MODELO 1b - LOTE\",\"N° DO EDITAL\",\"\")","v":""}]
[]
[]
[null,"COR/VERSÕES E CÓDIGO DE BARRAS"]
[]
[null,1,{"$f":"VLOOKUP(B14,'Cor - Versões - Código de Barra'!$B$3:$D$17,2,0)","v":"-"},null,4,{"$f":"VLOOKUP(E14,'Cor - Versões - Código de Barra'!$B$3:$D$17,2,0)","v":"-"},null,7,{"$f":"VLOOKUP(H14,'Cor - Versões - Código de Barra'!$B$3:$D$17,2,0)","v":"-"},null,10,{"$f":"VLOOKUP(K14,'Cor - Versões - Código de Barra'!$B$3:$D$17,2,0)","v":"-"},null,13,{"$f":"VLOOKUP(N14,'Cor - Versões - Código de Barra'!$B$3:$D$17,2,0)","v":"-"}]
[null,null,{"$f":"VLOOKUP(B14,'Cor - Versões - Código de Barra'!$B$3:$D$17,3,0)","v":"-"},null,null,{"$f":"VLOOKUP(E14,'Cor - Versões - Código de Barra'!$B$3:$D$17,3,0)","v":"-"},null,null,{"$f":"VLOOKUP(H14,'Cor - Versões - Código de Barra'!$B$3:$D$17,3,0)","v":"-"},null,null,{"$f":"VLOOKUP(K14,'Cor - Versões - Código de Barra'!$B$3:$D$17,3,0)","v":"-"},null,null,{"$f":"VLOOKUP(N14,'Cor - Versões - Código de Barra'!$B$3:$D$17,3,0)","v":"-"}]
[]
[null,2,{"$f":"VLOOKUP(B17,'Cor - Versões - Código de Barra'!$B$3:$D$17,2,0)","v":"-"},null,5,{"$f":"VLOOKUP(E17,'Cor - Versões - Código de Barra'!$B$3:$D$17,2,0)","v":"-"},null,8,{"$f":"VLOOKUP(H17,'Cor - Versões - Código de Barra'!$B$3:$D$17,2,0)","v":"-"},null,11,{"$f":"VLOOKUP(K17,'Cor - Versões - Código de Barra'!$B$3:$D$17,2,0)","v":"-"},null,14,{"$f":"VLOOKUP(N17,'Cor - Versões - Código de Barra'!$B$3:$D$17,2,0)","v":"-"}]
[null,null,{"$f":"VLOOKUP(B17,'Cor - Versões - Código de Barra'!$B$3:$D$17,3,0)","v":"-"},null,null,{"$f":"VLOOKUP(E17,'Cor - Versões - Código de Barra'!$B$3:$D$17,3,0)","v":"-"},null,null,{"$f":"VLOOKUP(H17,'Cor - Versões - Código de Barra'!$B$3:$D$17,3,0)","v":"-"},null,null,{"$f":"VLOOKUP(K17,'Cor - Versões - Código de Barra'!$B$3:$D$17,3,0)","v":"-"},null,null,{"$f":"VLOOKUP(N17,'Cor - Versões - Código de Barra'!$B$3:$D$17,3,0)","v":"-"}]
[]
[null,3,{"$f":"VLOOKUP(B20,'Cor - Versões - Código de Barra'!$B$3:$D$17,2,0)","v":"-"},null,6,{"$f":"VLOOKUP(E20,'Cor - Versões - Código de Barra'!$B$3:$D$17,2,0)","v":"-"},null,9,{"$f":"VLOOKUP(H20,'Cor - Versões - Código de Barra'!$B$3:$D$17,2,0)","v":"-"},null,12,{"$f":"VLOOKUP(K20,'Cor - Versões - Código de Barra'!$B$3:$D$17,2,0)","v":"-"},null,15,{"$f":"VLOOKUP(N20,'Cor - Versões - Código de Barra'!$B$3:$D$17,2,0)","v":"-"}]
[null,null,{"$f":"VLOOKUP(B20,'Cor - Versões - Código de Barra'!$B$3:$D$17,3,0)","v":"-"},null,null,{"$f":"VLOOKUP(E20,'Cor - Versões - Código de Barra'!$B$3:$D$17,3,0)","v":"-"},null,null,{"$f":"VLOOKUP(H20,'Cor - Versões - Código de Barra'!$B$3:$D$17,3,0)","v":"-"},null,null,{"$f":"VLOOKUP(K20,'Cor - Versões - Código de Barra'!$B$3:$D$17,3,0)","v":"-"},null,null,{"$f":"VLOOKUP(N20,'Cor - Versões - Código de Barra'!$B$3:$D$17,3,0)","v":"-"}]
[]
[]
[]
[]
[]
[null,"CARACTERÍSTICAS CONSTRUTIVAS - COMPOSIÇÃO"]
[]
[null,"Tipo de berço:",null,null,null,"-"]
[null,"Material:",null,null,null,"-",null,null,null,null,null,"O sistema de travamento não pode possibilitar o fechamento involuntário. Este requisito é atendido se pelo menos um dos critérios a seguir for atendido:"]
[null,"Dimensões:",null,null,null,"-"]
[null,"Sistema de travamento:",null,null,null,"-"]
[null,"Sistema de Montagem/Ferragem:",null,null,null,"-"]
[]
[null,"ACESSÓRIOS CONTIDOS: "]
[]
[null,null,"Acessórios",null,null,"Material (Acessório)",null,null,"Versões (Acessório)",null,null,"No caso de o andador infantil conter algum acessório, descrever sucintamente quais são os acessórios, material correspondente e cores/versões."]
[null,1,null,null,null,"-",null,null,"-"]
[null,2,null,null,null,"-",null,null,"-"]
[null,3,null,null,null,"-",null,null,"-"]
[null,4,null,null,null,"-",null,null,"-"]
[]
[null,"DESENHO DO PRODUTO"]
[]
[null,"EXEMPLOS","Exemplo (Imagem meramente ilustrativa)",null,null,null,"Favor inserir imagens de 800x600 dpi - mínimo",null,null,null,"DESENHO DO PRODUTO (CLIENTE):"]
[]
[]
[]
[]
[]
[]
[]
[]
[]
[]
[null,"RELAÇÃO DE INSUMOS\nInsumos podem ser as laterais, extremidades, base do andador, parafusos e afins, tintas utilizadas e todos os demais componentes utilizados para a construção do andador que impactem a conformidade do produto quanto à migração de elementos tóxicos, inflamabilidade que sejam fornecidos por empresa terceira ou produzidos pela própria empresa fabricante do produto final."]
[]
[null,"Obrigatório o preenchimento da tabela abaixo."]
[]
[null,"INSUMO",null,null,null,"MATERIAIS UTILIZADOS",null,null,null,null,"FORNECEDOR(ES)"]
[null,"-",null,null,null,"-",null,null,null,null,"-"]
[null,"-",null,null,null,"-",null,null,null,null,"-"]
[null,"-",null,null,null,"-",null,null,null,null,"-"]
[null,"-",null,null,null,"-",null,null,null,null,"-"]
[null,"-",null,null,null,"-",null,null,null,null,"-"]
[null,"-",null,null,null,"-",null,null,null,null,"-"]
[null,"-",null,null,null,"-",null,null,null,null,"-"]
[null,"-",null,null,null,"-",null,null,null,null,"-"]
[null,"-",null,null,null,"-",null,null,null,null,"-"]
[null,"-",null,null,null,"-",null,null,null,null,"-"]
[null,"-",null,null,null,"-",null,null,null,null,"-"]
[]
[null,"CICLO DE LAVAGEM:"]
[null,"Existem materiais têxteis(tecido) no produto que podem ser removidos da estrutura?",null,null,null,"Selecione o tipo de lavagem",null,{"$f":"IF(F74=\"selecione o tipo de lavagem\",\"\",(IF(F74=\"Lavagem manual\",\"Definir o procedimento de lavagem, produto de limpeza a ser utilizado, tempo de lavagem e modo de secagem.\",\"Definir o modo de lavagem na máquina e o modo de secagem.\")))","v":""}]
[]
[null,"POSICIONAMENTO DAS MARCAÇÕES OBRIGATÓRIAS:"]
[]
[null,null,null,null,"Descreva abaixo o posicionamento no produto:",null,null,null,null,null,"1 - Imagem",null,null,"2 - Imagem"]
[null,null,"1 - Marca do fabricante e/ou importador:",null,"-",null,null,null,null,null,"Resolução mínima 800 x 600",null,null,"Resolução mínima 800 x 600"]
[]
[null,null,null,null,"Descreva abaixo o posicionamento no produto:"]
[null,null,"2 - Selo de indentificação da conformidade:",null,"-"]
[]
[]
[null,null,null,null,"ASSINATURA DO OCP",null,null,null,null,null,"ASSINATURA DO FORNECEDOR (SOLICITANTE DA CERTIFICAÇÃO)"]
[null,null,null,null,"-",null,null,null,null,null,"-"]
[null,null,null,null,"DATA:",null,null,null,null,null,"DATA:"]
[null,null,null,null,"-",null,null,null,null,null,"-"]

{"sheet":"Cor - Versões - Código de Barra","index":2,"n_rows":18,"n_cols":4,"rows_kept":18,"cut":false,"hidden":false,"merged":[]}
[]
[null,null,"COR/VERSÕES"," CÓDIGO DE BARRAS"]
[null,1,"-","-"]
[null,2,"-","-"]
[null,3,"-","-"]
[null,4,"-","-"]
[null,5,"-","-"]
[null,6,"-","-"]
[null,7,"-","-"]
[null,8,"-","-"]
[null,9,"-","-"]
[null,10,"-","-"]
[null,11,"-","-"]
[null,12,"-","-"]
[null,13,"-","-"]
[null,14,"-","-"]
[null,15,"-","-"]
[null,null,"-",123123132132]

{"sheet":"PLANO DE ENSAIO","index":3,"n_rows":56,"n_cols":8,"rows_kept":56,"cut":false,"hidden":true,"merged":[[32,7,33,9],[28,3,28,4],[32,5,32,6],[32,1,33,1],[32,2,33,4],[24,3,24,4],[25,1,25,2],[25,3,25,4],[26,1,26,2],[26,3,26,4],[28,5,28,9],[27,1,27,2],[28,1,28,2],[24,5,24,9],[25,5,25,9],[26,5,26,9],[24,1,24,2],[29,1,29,9],[30,1,30,4],[30,5,30,9],[37,1,38,1],[37,2,38,4],[54,2,54,4],[54,7,54,9],[51,2,51,4],[51,7,51,9],[52,2,52,4],[52,7,52,9],[53,2,53,4],[53,7,53,9],[48,2,48,4],[48,7,48,9],[49,2,49,4],[49,7,49,9],[50,2,50,4],[50,7,50,9],[45,2,45,4],[45,7,45,9],[46,2,46,4],[46,7,46,9],[47,2,47,4],[47,7,47,9],[42,2,42,4],[42,7,42,9],[43,2,43,4],[43,7,43,9],[44,2,44,4],[44,7,44,9],[39,2,39,4],[39,7,39,9],[40,2,40,4],[40,7,40,9],[41,2,41,4],[41,7,41,9],[35,2,35,4],[35,7,35,9],[36,2,36,4],[36,7,36,9],[37,7,37,9],[38,7,38,9],[7,3,7,9],[31,1,31,9],[27,5,27,9],[27,3,27,4],[21,6,21,9],[13,1,13,9],[14,1,14,4],[14,5,14,9],[18,6,18,9],[11,1,11,2],[11,3,11,4],[11,6,11,9],[12,1,12,2],[12,3,12,4],[12,6,12,9],[20,6,20,9],[19,6,19,9],[17,6,17,9],[16,6,16,9],[15,6,15,9],[15,1,23,2],[22,6,23,9],[22,5,23,5],[15,3,23,4],[1,1,2,5],[1,6,1,9],[2,7,2,9],[3,1,3,9],[4,1,4,2],[4,3,4,9],[34,2,34,4],[55,2,55,4],[55,7,55,9],[34,7,34,9],[8,1,8,2],[8,3,8,9],[9,1,9,2],[9,3,9,4],[9,6,9,9],[10,1,10,2],[10,3,10,4],[10,6,10,9],[5,1,5,2],[5,3,5,5],[5,7,5,9],[6,1,6,2],[6,3,6,9],[7,1,7,2]]}
[]
[null,"PLANO DE ENSAIOS PARA ANDADORES",null,null,null,null,"FOR.22.2"]
[null,null,null,null,null,null,"REV.00","2025-09-15"]
[null,"IDENTIFICAÇÃO DO SOLICITANTE"]
[null,"Razão Social: (Solicitante)",null,{"$f":"SOLICITAÇÃO!C11","v":"-"}]
[null,"Endereço: (Solicitante)",null,{"$f":"CONCATENATE(SOLICITAÇÃO!C14,\" - \",SOLICITAÇÃO!C15,\" - \",SOLICITAÇÃO!C17,\" - \",SOLICITAÇÃO!C18)","v":"- - - - - - -"},null,null,"CEP:",{"$f":"SOLICITAÇÃO!C16","v":"-"}]
[null,"CNPJ: (Solicitante)",null,{"$f":"SOLICITAÇÃO!C13","v":"-"}]
[null,"Fabricante:",null,{"$f":"SOLICITAÇÃO!C27","v":"-"}]
[null,"Portaria:",null,"PORTARIA Nº 129, DE 19 DE MARÇO DE 2021 - Aprova o Regulamento Técnico da Qualidade e os Requisitos de Avaliação da Conformidade para Andadores Infantis – Consolidado."]
[null,"Rastreabilidade da amostra:",null,null,null,"Quantidade de amostras:"]
[null,"Modelo de certificação:",null,{"$f":"SOLICITAÇÃO!C5","v":"-"},null,"Tipo de amostra:","ESCOLHER UM ITEM."]
[null,"Tipo Amostragem:",null,"Escolher um item.",null,"Processo: (Evento)"]
[null,"Técnico responsável:",null,null,null,"Data:"]
[null,"IDENTIFICAÇÃO DA AMOSTRA"]
[null,"Identificação do modelo ",null,null,null,"Características construtivas"]
[null,"Foto do produto:",null,null,null,"Modelo:",{"$f":"'MEMORIAL DESCRITIVO'!E4","v":"-"}]
[null,null,null,null,null,"Marca:",{"$f":"'MEMORIAL DESCRITIVO'!E5","v":"-"}]
[null,null,null,null,null,"Nome comercial:",{"$f":"'MEMORIAL DESCRITIVO'!E6","v":"-"}]
[null,null,null,null,null,"Material: ",{"$f":"'MEMORIAL DESCRITIVO'!F30","v":"-"}]
[null,null,null,null,null,"Dimensões:",{"$f":"'MEMORIAL DESCRITIVO'!F31","v":"-"}]
[null,null,null,null,null,"Sistema de travamento:",{"$f":"'MEMORIAL DESCRITIVO'!F32","v":"-"}]
[null,null,null,null,null,"Sistema de Montagem/Ferragem:",{"$f":"'MEMORIAL DESCRITIVO'!F33","v":"-"}]
[null,null,null,null,null,"Acessórios:",{"$f":"_xlfn.TEXTJOIN(\" / \", TRUE,\n    IF('MEMORIAL DESCRITIVO'!C38<>\"\",'MEMORIAL DESCRITIVO'!C38,\"\"),\n    IF('MEMORIAL DESCRITIVO'!C39<>\"\",'MEMORIAL DESCRITIVO'!C39,\"\"),\n    IF('MEMORIAL DESCRITIVO'!C40<>\"\",'MEMORIAL DESCRITIVO'!C40,\"\"),\n    IF('MEMORIAL DESCRITIVO'!C41<>\"\",'MEMORIAL DESCRITIVO'!C41,\"\")\n)","v":""}]
[]
[null,"Insumo",null,"Materiais utilizados",null,"Fornecedor(es)"]
[null,{"$f":"'MEMORIAL DESCRITIVO'!B61","v":"-"},null,{"$f":"'MEMORIAL DESCRITIVO'!F61","v":"-"},null,{"$f":"'MEMORIAL DESCRITIVO'!K61","v":"-"}]
[null,{"$f":"'MEMORIAL DESCRITIVO'!B62","v":"-"},null,{"$f":"'MEMORIAL DESCRITIVO'!F62","v":"-"},null,{"$f":"'MEMORIAL DESCRITIVO'!K62","v":"-"}]
[null,{"$f":"'MEMORIAL DESCRITIVO'!B63","v":"-"},null,{"$f":"'MEMORIAL DESCRITIVO'!F63","v":"-"},null,{"$f":"'MEMORIAL DESCRITIVO'!K63","v":"-"}]
[null,{"$f":"'MEMORIAL DESCRITIVO'!B64","v":"-"},null,{"$f":"'MEMORIAL DESCRITIVO'!F64","v":"-"},null,{"$f":"'MEMORIAL DESCRITIVO'!K64","v":"-"}]
[null,"METODOLOGIA:"]
[null,"Base normativa a ser utilizada",null,null,null,"PORTARIA Nº 129:2021\nABNT NBR 16311:2014\nABNT NBR NM 300-1:2004  (versão corrigida 2011)\nABNT NBR NM 300-2:2004\nABNT NBR NM 300-3:2004 (versão corrigida 2011)"]
[null,"Tabela 1: Ensaios e itens de verificação a serem realizados em andadores"]
[null,"Requisito do RTQ","Ensaios",null,null,"Procedimento",null,"Execução?"]
[null,null,null,null,null,"Base Normativa","Item"]
[null,3,"Requisitos Gerais",null,null,"Portaria Nº 129:2021","3.1 a 3.12","Escolher um item."]
[null,"4.1","Aberturas",null,null,"ABNT NBR 16311:2014","5.2; 5.9","Escolher um item."]
[null,"4.2, 4.3","Bordas, cantos e saliências",null,null,"ABNT NBR 16311:2014","5.3; 5.9","Escolher um item."]
[null,"4.4","Ensaios de partes pequenas",null,null,"ABNT NBR 16311:2014","5.4; 5.9","Escolher um item."]
[null,null,null,null,null,"ABNT NBR NM 300-1:2004 (versão corrigida 2011)","5.2","Escolher um item."]
[null,"4.5","Ensaio de imersão para decalques e marcação",null,null,"ABNT NBR 16311:2014","5.5; 6.11","Escolher um item."]
[null,"4.6","Cordas, tiras e partes utilizadas como laços",null,null,"ABNT NBR 16311:2014","5.6","Escolher um item."]
[null,"4.7","Partes móveis rígidas",null,null,"ABNT NBR 16311:2014","5.7; 5.9","Escolher um item."]
[null,"4.8, 4.9","Mecanismos de fechamento e de ajuste da estrutura",null,null,"ABNT NBR 16311:2014","5.9; 5.10","Escolher um item."]
[null,"4.10","Retenção entrepernas",null,null,"ABNT NBR 16311:2014","5.8.1; 5.9","Escolher um item."]
[null,"4.11","Assentos removíveis",null,null,"ABNT NBR 16311:2014","5.8.2; 5.9","Escolher um item."]
[null,"4.12","Medição da altura do assento",null,null,"ABNT NBR 16311:2014","5.8.3; 6.4","Escolher um item."]
[null,"4.13","Ensaio de estabilidade estática",null,null,"ABNT NBR 16311:2014","5.11; 6.5","Escolher um item."]
[null,"4.14","Ensaio de prevenção contra quedas em degraus",null,null,"ABNT NBR 16311:2014","5.12; 6.6","Escolher um item."]
[null,"4.15","Ensaio de estabilidade dinâmica",null,null,"ABNT NBR 16311:2014","5.13; 6.7","Escolher um item."]
[null,"4.16","Ensaio de resistência estática",null,null,"ABNT NBR 16311:2014","5.14.1; 6.8","Escolher um item."]
[null,"4.17","Ensaio de resistência dinâmica",null,null,"ABNT NBR 16311:2014","5.14.2; 6.9","Escolher um item."]
[null,"4.18","Ensaio dos dispositivos de estacionamento",null,null,"ABNT NBR 16311:2014","5.15; 6.10","Escolher um item."]
[null,"4.19","Ensaio de roda livre",null,null,"ABNT NBR 16311:2014","5.17; 6.12","Escolher um item."]
[null,"4.20","Ensaios relativos a brinquedos macios (inflamabilidade)",null,null,"ABNT NBR NM 300-2:2004","4.4; 4.5","Escolher um item."]
[null,"4.21","Seleção de amostras de ensaio (migração de certos elementos)",null,null,"ABNT NBR NM 300-3:2004 \n(versão corrigida 2011)",7,"Escolher um item."]
[null,5,"Marcações obrigatórias no produto e na embalagem e requisitos de instruções de uso",null,null,"Portaria Nº 129:2021","5.1 a 5.10","Escolher um item."]

{"sheet":"REPASSE ","index":4,"n_rows":28,"n_cols":3,"rows_kept":28,"cut":false,"hidden":true,"merged":[[27,1,31,1],[27,2,31,4],[9,2,9,4],[10,2,10,4],[11,2,11,4],[12,2,12,4],[13,2,13,4],[14,2,14,4],[15,2,15,4],[16,2,16,4],[18,2,18,4],[19,2,19,4],[21,2,21,4],[8,2,8,4],[1,1,1,4],[3,1,3,4],[5,2,5,4],[6,2,6,4],[7,2,7,4]]}
[]
[null,"                                \n                             ANÁLISE DE VIABILIDADE -  REPASSE\n                 \n                               "]
[]
[null,"DADOS DO EMBALADOR - (Somente em caso de repasse)"]
[]
[null,"RAZÃO SOCIAL:","-"]
[null,"NOME FANTASIA:","-"]
[null,"CNPJ:","-"]
[null,"ENDEREÇO:","-"]
[null,"BAIRRO:","-"]
[null,"CEP:","-"]
[null,"CIDADE:","-"]
[null,"ESTADO:","-"]
[null,"E-MAIL:","-"]
[null,"NOME DO CONTATO:","-"]
[null,"TELEFONE: (   )","-"]
[null,"DATA DA SOLICITAÇÃO:","-"]
[]
[null,"N° AUTORIZAÇÃO PARTICULAR DE REPASSE:","-"]
[null,"N° AUTORIZAÇÃO DE USO DA MARCA:","-"]
[]
[null,"N° DE LICENÇA DE IMPORTAÇÃO:","-"]
[]
[null,"PROCEDÊNCIA: ","-"]
[null,{"$f":"IF(C24=\"IMPORTADO\",\"PAÍS DE ORIGEM:\",\"\")","v":""},"-"]
[null,{"$f":"IF(C24=\"IMPORTADO\",\"N° DA LICENÇA DE IMPORTAÇÃO\",\"-\")","v":"-"},"-"]
[]
[null,null,"______________________________________________________________________\nAssinatura (obrigatório)\n"]

{"sheet":"Plan2","index":5,"n_rows":21,"n_cols":7,"rows_kept":21,"cut":false,"hidden":true,"merged":[]}
[null,null,"SISTEMA DE TRAVAMENTO"]
["-","-","-","-","-"]
["Tipo 1 ",null,"Liberação em duas ações consecutivas","Manual (sem ferramenta)","Sim","-","-"]
["Tipo 2",null,"50N de força para liberação","Manual (com ferramenta)","Não","MODELO 2","INICIAL"]
[null,null,"Dois dispositivos de travamento independentes sendo operados simultâneamente","Rebites, parafusos e encaixe de peças plasticas",null,"MODELO 5","MANUTENÇÃO"]
[null,null,"Liberação com uso de ferramenta","Outros:",null,"MODELO 1b - LOTE","INCLUSÃO / REVISÃO"]
[null,null,null,null,null,null,"RECERTIFICAÇÃO"]
[null,null,null,null,null,null,"TRANSFERÊNCIA"]
[]
[]
[]
[]
[]
[]
[]
[]
[]
[]
[]
[null,null,null,"REBITES, PARAFUSOS E ENCAIXE DE PECAS PLASTICAS"]
[null,null,null,"TRILHO PLASTICO COM BOTAO DE DESTRAVE E REGUL "]